fUSD/lending_fUSD_20250119
["ID","MTS","AMOUNT","RATE_DAILY","PERIOD"]
[349613902,1737328262213,-500.0,0.00020515,2]
[349613903,1737328262222,-518.35,0.00020567,2]
[349613904,1737328262232,-152.222238,0.00020567,2]
[349613905,1737328262242,-511.57550406,0.00020568,2]
[349613906,1737328262251,-500.0,0.00020569,2]
[349613907,1737328262262,-500.0,0.00020789,2]
[349613908,1737328262271,-500.0,0.00020789,2]
[349613909,1737328262281,-500.0,0.00021063,2]
[349613910,1737328262292,-196696.05549573,0.00021999,2]
[349613911,1737328262311,-500.0,0.00021999,2]
[349613912,1737328262322,-101533.9312016,0.00021999,2]
[349613913,1737328262388,-500.0,0.00020568,2]
[349613914,1737328262397,-500.0,0.00020843,2]
[349613915,1737328262407,-953.04,0.00021999,2]
[349613916,1737328262419,-91221.42935611,0.00021999,2]
[349613917,1737328262430,-39850.11973999,0.00021999,2]
[349613918,1737328262446,-152.222238,0.00021115,2]
[349613919,1737328262455,-110725.29294896,0.00021999,2]
[349613920,1737328262467,-9141.80213164,0.00021999,2]
[349613921,1737328262479,-2509.3,0.00021999,2]
[349613922,1737328262490,-7666.56731528,0.00021999,2]
[349613923,1737328262502,-6603.13890775,0.00021999,2]
[349613924,1737328262513,-5067.5,0.00021999,2]
[349613925,1737328262525,-561.16706377,0.00021999,2]
[349613926,1737328262536,-8104.754997,0.00021999,2]
[349613927,1737328262547,-1269.26404567,0.00021999,2]
[349613928,1737328262660,-6901.722832,0.00021999,2]
[349613929,1737328262671,-1077.24549593,0.00021999,2]
[349613930,1737328262683,-50982.44195178,0.00021999,2]
[349613954,1737328957837,1571.99,0.00018881,30]
[349613956,1737329059353,3000.0,0.00022,120]
[349613957,1737329108366,1000000.0,0.00012,2]
[349613958,1737329108391,1000000.0,0.00012,2]
[349613959,1737329108416,100000.0,0.00012,2]
[349613960,1737329108443,1406888.25146641,0.00012,2]
[349613961,1737329125812,213.20132938,0.000108,2]
[349613962,1737329131842,7019.03619186,0.0001,2]
[349613963,1737329134213,10692.59261145,0.000113,2]
[349613964,1737329134697,331.83934384,0.0001,2]
[349613965,1737329138127,-185.56,0.00012329,2]
[349613966,1737329138149,-1341.87937431,0.000149,2]
[349613967,1737329138171,-550.0,0.00015,2]
[349613968,1737329138192,-1341.87937429,0.00015756,2]
[349613969,1737329138219,-1341.87937429,0.00016612,2]
[349613970,1737329138240,-175.77,0.00016712,2]
[349613971,1737329138262,-600.0,0.00017,2]
[349613972,1737329138285,-250.0,0.00017062,2]
[349613973,1737329138308,-1048.95,0.00017768,2]
[349613974,1737329138331,-1994.0,0.000185,2]
[349613975,1737329138351,-329.45,0.00018556,2]
[349613976,1737329138373,-200.0,0.00018556,2]
[349613977,1737329138396,-171.91,0.00018662,2]
[349613978,1737329138418,-300.0,0.00018692,2]
[349613979,1737329138439,-650.0,0.00019,2]
[349613980,1737329138468,-10760.29364891,0.00019,2]
[349613981,1737329138489,-994.92,0.00019047,2]
[349613982,1737329138511,-242.48,0.00019047,2]
[349613983,1737329138533,-491.68,0.00019128,2]
[349613984,1737329138555,-491.68,0.00019133,2]
[349613985,1737329138577,-491.68,0.00019138,2]
[349613986,1737329138601,-491.68,0.00019143,2]
[349613987,1737329138624,-491.68,0.00019148,2]
[349613988,1737329138647,-491.68,0.00019153,2]
[349613989,1737329138670,-491.68,0.00019158,2]
[349613990,1737329138696,-491.68,0.00019163,2]
[349613991,1737329138726,-491.68,0.00019168,2]
[349613992,1737329138750,-491.68,0.00019173,2]
[349613993,1737329138772,-678.25,0.00019177,2]
[349613994,1737329138794,-491.68,0.00019178,2]
[349613995,1737329138816,-491.68,0.00019183,2]
[349613996,1737329138838,-411.75395546,0.00019188,2]
[349614004,1737329155113,9030.3248934,6.94e-05,2]
[349614005,1737329163284,10650.07872371,0.0001,2]
[349614006,1737329167581,7687.22302061,8e-05,2]
[349614007,1737329167653,150.39,0.00010137,2]
[349614013,1737329254435,4065.89409777,0.00022,120]
[349614016,1737329279679,672.12234361,0.0001,2]
[349614017,1737329283773,212351.93607189,0.0001,2]
[349614025,1737329364078,-255.73123091,0.00014888,2]
[349614026,1737329366649,1602.65876381,2e-05,2]
[349614027,1737329392719,5327.98662938,0.0001,2]
[349614029,1737329398859,50501.6872782,8.803e-05,2]
[349614044,1737329431666,-300.0,0.00014887,2]
[349614045,1737329431676,-1283.50000001,0.00014888,2]
[349614048,1737329431734,-1450.0,0.00014888,2]
[349614049,1737329431800,-10664.57098842,0.00014888,2]
[349614050,1737329431810,-6767.6396912,0.000149,2]
[349614051,1737329431820,-150.0,0.00014999,2]
[349614052,1737329431830,-1956.40223022,0.00015,2]
[349614053,1737329431839,-18108.04313503,0.00015,2]
[349614054,1737329431848,-14886.43623698,0.00015,2]
[349614055,1737329431858,-3831.91551198,0.00015,2]
[349614056,1737329431868,-420.0,0.00016295,2]
[349614057,1737329431877,-587.0,0.00017836,2]
[349614058,1737329431886,-3235.06401273,0.000179,2]
[349614059,1737329431896,-3893.89109794,0.00018,10]
[349614060,1737329431905,-3235.06401258,0.00018038,2]
[349614061,1737329431914,-651.92,0.0001812,2]
[349614062,1737329431924,-4449.3,0.0001812,2]
[349614063,1737329431934,-1766.28,0.00018128,2]
[349614064,1737329431944,-250.0,0.00018172,2]
[349614065,1737329431953,-3235.06401258,0.00018176,2]
[349614066,1737329431962,-827.86,0.00018185,2]
[349614067,1737329431972,-3235.06401258,0.00018314,2]
[349614068,1737329431982,-3235.06401258,0.00018452,2]
[349614069,1737329431991,-250.0,0.00018556,2]
[349614070,1737329432001,-3235.06401258,0.0001859,2]
[349614071,1737329432011,-479.99482552,0.00018624,2]
[349614072,1737329432022,-3235.06401258,0.00018728,2]
[349614073,1737329432032,-9347.83804151,0.0001878,2]
[349614074,1737329432041,-3235.06401258,0.00018866,2]
[349614075,1737329432051,-16449.53482762,0.000189,2]
[349614076,1737329432061,-3889.91478895,0.00018935,2]
[349614077,1737329432070,-746.36235948,0.00019,2]
[349614078,1737329432080,-15179.85717156,0.00019,2]
[349614079,1737329432090,-3235.06401258,0.00019003,2]
[349614080,1737329432100,-1766.28,0.00019035,2]
[349614081,1737329432112,-1000.0,0.0001907,2]
[349614082,1737329432121,-200.0,0.000191,2]
[349614083,1737329432130,-3235.06401258,0.00019141,2]
[349614084,1737329432140,-11885.13,0.00019151,2]
[349614085,1737329432149,-79.92604454,0.00019188,2]
[349614086,1737329432159,-491.68,0.00019193,2]
[349614087,1737329432169,-491.68,0.00019198,2]
[349614088,1737329432179,-491.68,0.00019203,2]
[349614089,1737329432188,-491.68,0.00019208,2]
[349614090,1737329432197,-491.68,0.00019213,2]
[349614091,1737329432207,-491.68,0.00019218,2]
[349614092,1737329432218,-491.68,0.00019223,2]
[349614093,1737329432230,-10898.60410966,0.00019249,2]
[349614094,1737329432239,-500.0,0.0001926,2]
[349614095,1737329432249,-3889.9147889,0.00019264,2]
[349614096,1737329432259,-3235.06401258,0.00019279,2]
[349614097,1737329432271,-250.0,0.0001936,2]
[349614098,1737329432281,-1996.0,0.00019363,2]
[349614099,1737329432291,-3235.06401258,0.00019417,2]
[349614100,1737329432302,-500.0,0.00019425,2]
[349614101,1737329432311,-7533.25354617,0.000195,2]
[349614102,1737329432321,-22693.49460677,0.000195,2]
[349614103,1737329432330,-179.0,0.00019523,2]
[349614105,1737329432340,-3235.06401258,0.00019555,2]
[349614106,1737329432349,-3889.9147889,0.00019594,2]
[349614108,1737329432358,-3235.06401258,0.00019693,2]
[349614110,1737329432368,-3235.06401258,0.00019831,2]
[349614111,1737329432378,-157.96878908,0.00019841,2]
[349614112,1737329432387,-650.21053947,0.00019841,2]
[349614113,1737329432396,-500.0,0.00019886,2]
[349614114,1737329432405,-678.25,0.00019887,2]
[349614115,1737329432415,-519.74317377,0.000199,2]
[349614116,1737329432424,-11902.63332103,0.000199,7]
[349614117,1737329432433,-3889.9147889,0.00019923,2]
[349614118,1737329432442,-500.0,0.0001994,2]
[349614119,1737329432452,-500.0,0.0001994,2]
[349614120,1737329432461,-500.0,0.0001994,2]
[349614121,1737329432471,-500.0,0.0001994,2]
[349614122,1737329432480,-500.0,0.0001994,2]
[349614123,1737329432490,-500.0,0.0001994,2]
[349614124,1737329432500,-500.0,0.0001994,2]
[349614125,1737329432509,-500.0,0.0001994,2]
[349614127,1737329432518,-500.0,0.0001994,2]
[349614129,1737329432530,-500.0,0.0001994,2]
[349614131,1737329432540,-500.0,0.0001994,2]
[349614132,1737329432550,-646.06,0.0001994,2]
[349614133,1737329432559,-500.0,0.0001994,2]
[349614134,1737329432569,-170502.23331807,0.00019941,2]
[349614136,1737329432579,-23900.0,0.00019941,2]
[349614138,1737329432588,-1956.256,0.00019941,2]
[349614140,1737329432598,-1766.28,0.00019941,2]
[349614142,1737329432607,-3235.06401258,0.00019969,2]
[349614143,1737329432619,-1000.0,0.00019977,2]
[349614146,1737329432629,-31182.36313785,0.0002,2]
[349614147,1737329432638,-759.675,0.0002,2]
[349614149,1737329432648,-588.86681254,0.0002,2]
[349614151,1737329432658,-519.38888243,0.0002,4]
[349614153,1737329432668,-935.64054884,0.0002,2]
[349614155,1737329432677,-830.42131204,0.0002,2]
[349614157,1737329432687,-531.51510146,0.0002,2]
[349614159,1737329432697,-1237.85862024,0.0002,2]
[349614160,1737329432707,-1962.87067553,0.0002,2]
[349614161,1737329432717,-17008.39700897,0.0002,2]
[349614162,1737329432726,-998.75825075,0.0002,2]
[349614163,1737329432737,-1048.95,0.00020032,2]
[349614164,1737329432746,-650.21053946,0.0002007,2]
[349614165,1737329432756,-3235.06401258,0.00020107,2]
[349614166,1737329432766,-500.0,0.0002016,2]
[349614167,1737329432782,-428.4,0.00020195,2]
[349614168,1737329432792,-500.0,0.00020214,2]
[349614169,1737329432802,-500.0,0.00020214,2]
[349614170,1737329432811,-500.0,0.00020214,2]
[349614171,1737329432822,-500.0,0.00020214,2]
[349614172,1737329432831,-500.0,0.00020214,2]
[349614173,1737329432841,-500.0,0.00020214,2]
[349614174,1737329432851,-592.62331865,0.00020214,2]
[349614175,1737329432861,-376.29866386,0.00020214,2]
[349614176,1737329432870,-500.0,0.00020214,2]
[349614177,1737329433030,-646.06,0.00020214,2]
[349614178,1737329433047,-408.49494673,0.00020214,2]
[349614179,1737329433057,-3235.06401258,0.00020245,2]
[349614180,1737329433067,-3889.9147889,0.00020253,2]
[349614181,1737329433077,-157.96878904,0.00020253,2]
[349614182,1737329433087,-650.21053946,0.00020299,2]
[349614183,1737329433098,-855.3982,0.00020316,2]
[349614184,1737329433108,-1000.0,0.00020316,2]
[349614185,1737329433119,-365.2998,0.00020368,2]
[349614186,1737329433129,-715.0739,0.00020368,2]
[349614187,1737329433139,-3235.06401258,0.00020383,2]
[349614188,1737329433150,-500.0,0.00020434,2]
[349614189,1737329433160,-151.0,0.00020456,2]
[349614190,1737329433170,-827.86,0.00020458,2]
[349614191,1737329433180,-5000.0,0.00020466,2]
[349614192,1737329433190,-466.26471362,0.00020467,2]
[349614193,1737329433199,-41070.7297,0.00020468,2]
[349614194,1737329433209,-4491.4131,0.00020469,2]
[349614195,1737329433221,-500.0,0.00020488,2]
[349614196,1737329433231,-500.0,0.00020488,2]
[349614197,1737329433242,-500.0,0.00020488,2]
[349614198,1737329433255,-500.0,0.00020488,2]
[349614199,1737329433266,-242.74069137,0.00020488,2]
[349614200,1737329433283,-500.0,0.00020488,2]
[349614201,1737329433294,-500.0,0.00020488,2]
[349614202,1737329433304,-646.06,0.00020488,2]
[349614203,1737329433314,-500.0,0.00020513,2]
[349614204,1737329433324,-2028.99,0.00020513,2]
[349614205,1737329433334,-1481.91,0.00020513,2]
[349614206,1737329433344,-529.44,0.00020513,2]
[349614207,1737329433354,-1048.91,0.00020513,2]
[349614208,1737329433364,-881.61,0.00020513,2]
[349614209,1737329433374,-1546.46,0.00020513,2]
[349614210,1737329433383,-1692.57,0.00020513,2]
[349614211,1737329433393,-500.0,0.00020513,2]
[349614212,1737329433403,-1047.5,0.00020513,2]
[349614213,1737329433413,-500.0,0.00020513,2]
[349614214,1737329433423,-678.12,0.00020513,2]
[349614215,1737329433433,-2874.64,0.00020513,2]
[349614216,1737329433444,-912.14,0.00020513,2]
[349614217,1737329433453,-1839.2,0.00020513,2]
[349614218,1737329433463,-500.0,0.00020513,2]
[349614219,1737329433473,-993.24,0.00020513,2]
[349614220,1737329433483,-500.0,0.00020513,2]
[349614221,1737329433493,-783.73,0.00020513,2]
[349614222,1737329433503,-895.88,0.00020513,2]
[349614223,1737329433513,-500.0,0.00020513,2]
[349614224,1737329433528,-2797.32,0.00020513,2]
[349614225,1737329433538,-500.0,0.00020513,2]
[349614226,1737329433548,-500.0,0.00020514,2]
[349614227,1737329433558,-500.0,0.00020514,2]
[349614228,1737329433568,-500.0,0.00020514,2]
[349614229,1737329433578,-500.0,0.00020514,2]
[349614230,1737329433587,-500.0,0.00020514,2]
[349614231,1737329433597,-503.51,0.00020514,2]
[349614232,1737329433607,-500.0,0.00020514,2]
[349614233,1737329433617,-500.0,0.00020514,2]
[349614234,1737329433627,-500.0,0.00020514,2]
[349614235,1737329433637,-500.0,0.00020514,2]
[349614236,1737329433647,-500.0,0.00020514,2]
[349614237,1737329433657,-500.0,0.00020514,2]
[349614238,1737329433666,-500.0,0.00020514,2]
[349614239,1737329433676,-500.0,0.00020514,2]
[349614240,1737329433686,-500.0,0.00020514,2]
[349614241,1737329433695,-500.0,0.00020514,2]
[349614242,1737329433706,-500.0,0.00020514,2]
[349614243,1737329433715,-500.0,0.00020514,2]
[349614244,1737329433725,-500.0,0.00020514,2]
[349614245,1737329433734,-500.0,0.00020514,2]
[349614246,1737329433744,-500.0,0.00020514,2]
[349614247,1737329433753,-500.0,0.00020514,2]
[349614248,1737329433763,-500.0,0.00020514,2]
[349614249,1737329433775,-500.0,0.00020514,2]
[349614250,1737329433785,-500.0,0.00020514,2]
[349614251,1737329433795,-500.0,0.00020514,2]
[349614252,1737329433805,-500.0,0.00020514,2]
[349614253,1737329433815,-500.0,0.00020514,2]
[349614254,1737329433824,-500.0,0.00020514,2]
[349614255,1737329433834,-500.0,0.00020514,2]
[349614256,1737329433844,-500.0,0.00020514,2]
[349614257,1737329433853,-558.61,0.00020514,2]
[349614258,1737329433863,-500.0,0.00020514,2]
[349614259,1737329433872,-500.0,0.00020514,2]
[349614260,1737329433882,-500.0,0.00020514,2]
[349614261,1737329433892,-500.0,0.00020514,2]
[349614262,1737329433902,-500.0,0.00020514,2]
[349614263,1737329433911,-522.94,0.00020514,2]
[349614264,1737329433921,-500.0,0.00020514,2]
[349614265,1737329433931,-500.0,0.00020514,2]
[349614266,1737329433940,-500.0,0.00020514,2]
[349614267,1737329433950,-500.0,0.00020514,2]
[349614268,1737329433961,-500.0,0.00020514,2]
[349614269,1737329433971,-500.0,0.00020514,2]
[349614270,1737329433982,-500.0,0.00020514,2]
[349614271,1737329433992,-532.25,0.00020514,2]
[349614272,1737329434003,-1531.9,0.00020514,2]
[349614273,1737329434014,-500.0,0.00020514,2]
[349614274,1737329434028,-500.0,0.00020514,2]
[349614275,1737329434039,-739.68,0.00020514,2]
[349614276,1737329434049,-500.0,0.00020514,2]
[349614277,1737329434059,-518.97,0.00020514,2]
[349614278,1737329434069,-667.03,0.00020514,2]
[349614279,1737329434079,-500.0,0.00020514,2]
[349614280,1737329434089,-500.0,0.00020514,2]
[349614281,1737329434100,-542.63129,0.00020514,2]
[349614282,1737329434109,-2536.05,0.00020514,2]
[349614283,1737329434119,-500.0,0.00020514,2]
[349614284,1737329434129,-160.900393,0.00020514,2]
[349614285,1737329434138,-500.0,0.00020514,2]
[349614286,1737329434147,-1170.24,0.00020514,2]
[349614287,1737329434157,-158.986624,0.00020514,2]
[349614288,1737329434166,-500.0,0.00020514,2]
[349614289,1737329434176,-500.0,0.00020514,2]
[349614290,1737329434185,-2808.0,0.00020514,2]
[349614291,1737329434195,-500.0,0.00020514,2]
[349614292,1737329434205,-500.0,0.00020514,2]
[349614293,1737329434214,-500.0,0.00020514,2]
[349614294,1737329434228,-648.48829,0.00020514,2]
[349614295,1737329434238,-500.0,0.00020514,2]
[349614296,1737329434247,-500.0,0.00020514,2]
[349614297,1737329434256,-156.661229,0.00020514,2]
[349614298,1737329434266,-500.0,0.00020514,2]
[349614299,1737329434280,-896.3,0.00020514,2]
[349614300,1737329434291,-500.0,0.00020514,2]
[349614301,1737329434302,-500.0,0.00020514,2]
[349614302,1737329434312,-500.0,0.00020514,2]
[349614303,1737329434321,-500.0,0.00020514,2]
[349614304,1737329434331,-500.0,0.00020514,2]
[349614305,1737329434341,-1124.05,0.00020514,2]
[349614306,1737329434351,-500.0,0.00020514,2]
[349614307,1737329434360,-556.15,0.00020514,2]
[349614308,1737329434369,-500.0,0.00020514,2]
[349614309,1737329434379,-500.0,0.00020514,2]
[349614310,1737329434389,-558.8,0.00020514,2]
[349614311,1737329434398,-500.0,0.00020514,2]
[349614312,1737329434407,-2589.86,0.00020514,2]
[349614313,1737329434417,-511.79,0.00020514,2]
[349614314,1737329434426,-798.41,0.00020514,2]
[349614315,1737329434436,-500.0,0.00020514,2]
[349614316,1737329434445,-500.0,0.00020514,2]
[349614317,1737329434455,-633.14,0.00020514,2]
[349614318,1737329434465,-500.0,0.00020514,2]
[349614319,1737329434474,-3853.1,0.00020514,2]
[349614320,1737329434484,-758.47,0.00020514,2]
[349614321,1737329434494,-500.0,0.00020514,2]
[349614322,1737329434504,-500.0,0.00020514,2]
[349614323,1737329434513,-984.81,0.00020514,2]
[349614324,1737329434527,-500.0,0.00020514,2]
[349614325,1737329434537,-3472.01,0.00020514,2]
[349614326,1737329434547,-500.0,0.00020514,2]
[349614327,1737329434557,-500.0,0.00020514,2]
[349614328,1737329434567,-500.0,0.00020514,2]
[349614329,1737329434577,-1237.2,0.00020514,2]
[349614330,1737329434587,-500.0,0.00020514,2]
[349614331,1737329434597,-500.0,0.00020514,2]
[349614332,1737329434607,-500.0,0.00020514,2]
[349614333,1737329434616,-500.0,0.00020514,2]
[349614334,1737329434626,-1576.81,0.00020514,2]
[349614335,1737329434636,-500.0,0.00020514,2]
[349614336,1737329434645,-500.0,0.00020514,2]
[349614337,1737329434655,-500.0,0.00020515,2]
[349614338,1737329434665,-500.0,0.00020515,2]
[349614339,1737329434675,-500.0,0.00020515,2]
[349614340,1737329434684,-500.0,0.00020515,2]
[349614341,1737329434694,-500.0,0.00020515,2]
[349614342,1737329434703,-500.0,0.00020515,2]
[349614343,1737329434713,-500.0,0.00020515,2]
[349614344,1737329434723,-500.0,0.00020515,2]
[349614345,1737329434732,-500.0,0.00020515,2]
[349614346,1737329434742,-500.0,0.00020515,2]
[349614347,1737329434752,-500.0,0.00020515,2]
[349614348,1737329434761,-500.0,0.00020515,2]
[349614349,1737329434773,-500.0,0.00020515,2]
[349614350,1737329434782,-500.0,0.00020515,2]
[349614351,1737329434792,-500.0,0.00020515,2]
[349614352,1737329434802,-500.0,0.00020515,2]
[349614353,1737329434811,-500.0,0.00020515,2]
[349614354,1737329434820,-500.0,0.00020515,2]
[349614355,1737329434830,-500.0,0.00020515,2]
[349614356,1737329434839,-500.0,0.00020515,2]
[349614357,1737329434848,-500.0,0.00020515,2]
[349614358,1737329434857,-500.0,0.00020515,2]
[349614359,1737329434867,-500.0,0.00020515,2]
[349614360,1737329434876,-500.0,0.00020515,2]
[349614361,1737329434885,-500.0,0.00020515,2]
[349614362,1737329434895,-500.0,0.00020515,2]
[349614363,1737329434904,-500.0,0.00020515,2]
[349614364,1737329434914,-500.0,0.00020515,2]
[349614365,1737329434923,-500.0,0.00020515,2]
[349614366,1737329434933,-500.0,0.00020515,2]
[349614367,1737329434942,-500.0,0.00020515,2]
[349614368,1737329434952,-500.0,0.00020515,2]
[349614369,1737329434961,-500.0,0.00020515,2]
[349614370,1737329434971,-500.0,0.00020515,2]
[349614371,1737329434980,-500.0,0.00020515,2]
[349614372,1737329434990,-500.0,0.00020515,2]
[349614373,1737329434999,-500.56969887,0.00020515,2]
[349614374,1737329435009,-500.0,0.00020515,2]
[349614375,1737329435018,-500.0,0.00020515,2]
[349614376,1737329435032,-500.0,0.00020515,2]
[349614377,1737329435042,-500.0,0.00020515,2]
[349614378,1737329435051,-500.0,0.00020515,2]
[349614379,1737329435060,-500.0,0.00020515,2]
[349614380,1737329435069,-500.0,0.00020515,2]
[349614381,1737329435080,-500.0,0.00020515,2]
[349614382,1737329435090,-500.0,0.00020515,2]
[349614383,1737329435099,-500.0,0.00020515,2]
[349614384,1737329435109,-500.0,0.00020515,2]
[349614385,1737329435119,-500.0,0.00020515,2]
[349614386,1737329435129,-541.66,0.00020515,2]
[349614387,1737329435139,-611.56,0.00020515,2]
[349614388,1737329435149,-500.0,0.00020515,2]
[349614389,1737329435158,-500.0,0.00020515,2]
[349614390,1737329435168,-500.0,0.00020515,2]
[349614391,1737329435177,-500.0,0.00020515,2]
[349614392,1737329435187,-500.0,0.00020515,2]
[349614393,1737329435197,-500.0,0.00020515,2]
[349614394,1737329435207,-500.0,0.00020515,2]
[349614395,1737329435216,-500.0,0.00020515,2]
[349614396,1737329435227,-500.0,0.00020515,2]
[349614397,1737329435237,-500.0,0.00020515,2]
[349614398,1737329435250,-500.0,0.00020515,2]
[349614399,1737329435260,-500.0,0.00020515,2]
[349614400,1737329435270,-500.0,0.00020515,2]
[349614401,1737329435290,-500.0,0.00020515,2]
[349614402,1737329435300,-500.0,0.00020515,2]
[349614403,1737329435311,-500.0,0.00020515,2]
[349614404,1737329435322,-500.0,0.00020515,2]
[349614405,1737329435332,-500.0,0.00020515,2]
[349614406,1737329435342,-432.42027539,0.00020515,2]
[349614407,1737329435352,-500.0,0.00020515,2]
[349614408,1737329435363,-304.79801718,0.00020515,2]
[349614409,1737329435372,-500.0,0.00020515,2]
[349614410,1737329435382,-633.29102945,0.00020515,2]
[349614411,1737329435391,-500.0,0.00020515,2]
[349614412,1737329435401,-500.0,0.00020515,2]
[349614413,1737329435411,-500.0,0.00020515,2]
[349614414,1737329435421,-500.0,0.00020515,2]
[349614415,1737329435431,-500.0,0.00020515,2]
[349614416,1737329435441,-500.0,0.00020515,2]
[349614417,1737329435453,-500.0,0.00020515,2]
[349614418,1737329435463,-342.54072609,0.00020515,2]
[349614419,1737329435473,-500.0,0.00020515,2]
[349614420,1737329435484,-500.0,0.00020515,2]
[349614421,1737329435494,-500.0,0.00020515,2]
[349614422,1737329435504,-500.0,0.00020515,2]
[349614423,1737329435514,-500.0,0.00020515,2]
[349614424,1737329435527,-500.0,0.00020515,2]
[349614425,1737329435537,-500.0,0.00020515,2]
[349614426,1737329435664,-500.0,0.00020515,2]
[349614427,1737329435674,-551.64,0.00020515,2]
[349614428,1737329435684,-500.0,0.00020515,2]
[349614429,1737329435694,-500.0,0.00020515,2]
[349614430,1737329435704,-3235.06401258,0.00020521,2]
[349614431,1737329435713,-650.21053946,0.00020527,2]
[349614432,1737329435723,-239.83214413,0.00020566,2]
[349614433,1737329435732,-500.0,0.00020566,2]
[349614434,1737329435742,-500.0,0.00020566,2]
[349614435,1737329435751,-178.20559594,0.00020566,2]
[349614436,1737329435761,-500.0,0.00020566,2]
[349614437,1737329435775,-542.99385475,0.00020566,2]
[349614438,1737329435785,-500.0,0.00020566,2]
[349614439,1737329435794,-500.0,0.00020566,2]
[349614440,1737329435804,-500.0,0.00020566,2]
[349614441,1737329435814,-500.0,0.00020566,2]
[349614442,1737329435824,-500.0,0.00020566,2]
[349614443,1737329435833,-464.38849741,0.00020566,2]
[349614444,1737329435843,-500.0,0.00020566,2]
[349614445,1737329435853,-569.27,0.00020566,2]
[349614446,1737329435862,-500.0,0.00020566,2]
[349614447,1737329435871,-500.0,0.00020566,2]
[349614448,1737329435881,-500.0,0.00020566,2]
[349614449,1737329435891,-520.7831212,0.00020566,2]
[349614450,1737329435901,-500.48833845,0.00020566,2]
[349614451,1737329435910,-500.50102348,0.00020566,2]
[349614452,1737329435920,-537.06924038,0.00020566,2]
[349614453,1737329435929,-500.31768155,0.00020566,2]
[349614454,1737329435939,-500.0,0.00020566,2]
[349614455,1737329435948,-500.0,0.00020566,2]
[349614456,1737329435958,-471.74215027,0.00020566,2]
[349614457,1737329435967,-500.0,0.00020566,2]
[349614458,1737329435977,-500.45813681,0.00020566,2]
[349614459,1737329435986,-500.0,0.00020566,2]
[349614460,1737329435995,-434.97513068,0.00020566,2]
[349614461,1737329436005,-500.0,0.00020566,2]
[349614462,1737329436014,-500.0,0.00020566,2]
[349614463,1737329436028,-500.0,0.00020566,2]
[349614464,1737329436037,-500.0,0.00020566,2]
[349614465,1737329436047,-566.85148114,0.00020566,2]
[349614466,1737329436056,-500.44863121,0.00020566,2]
[349614467,1737329436065,-500.38425555,0.00020566,2]
[349614468,1737329436075,-500.0,0.00020566,2]
[349614469,1737329436085,-500.0,0.00020566,2]
[349614470,1737329436094,-500.41095643,0.00020566,2]
[349614471,1737329436103,-500.0,0.00020566,2]
[349614472,1737329436112,-500.0,0.00020566,2]
[349614473,1737329436122,-571.04459131,0.00020566,2]
[349614474,1737329436131,-501.60009995,0.00020566,2]
[349614475,1737329436140,-500.0,0.00020566,2]
[349614476,1737329436149,-500.0,0.00020566,2]
[349614477,1737329436158,-500.0,0.00020566,2]
[349614478,1737329436167,-500.0,0.00020566,2]
[349614479,1737329436176,-501.57703052,0.00020566,2]
[349614480,1737329436186,-500.0,0.00020566,2]
[349614481,1737329436196,-500.0,0.00020566,2]